Workbook

Sheet Исходный
S1: Операция | T1: Дата для сводной | U1: Дата операции | V1: Дата оплаты | W1: Дата создания | X1: Дата п/д | Y1: Дата начисления 20-е | Z1: Агент | AA1: Сумма | AB1: Год
S2: =IFERROR(VLOOKUP(B2,$N$43:$O$49,2,),"") ->  | T2: =IF(S2="оплата",V2,IF(S2="пени",W2,IF(S2="начисление",U2,""))) ->  | U2: =IFERROR(--(SUBSTITUTE(LEFT(C2,SEARCH(" ",C2)+3),"ая","ай")&" "&RIGHT(C2,4)),"") ->  | V2: =IF(LEFT(B2,6)="Оплата",F2,"") ->  | W2: =IFERROR(--SUBSTITUTE(SUBSTITUTE(MID(H2,1,(FIND(",",H2,1))),",",),"мая","май"),"") ->  | X2: =IF(S2="начисление",W2,"") ->  | Y2: =IF(S2="Начисление",U2+19,"") ->  | Z2: =IF(S2="оплата",IF(E2="","Ручное",E2),"") ->  | AA2: =IFERROR(IF(OR(S2="оплата",S2="Начисление",S2="перерасчет",S2="Пени",S2="Пени перерасчет",S2="Начисление пени"),SUBSTITUTE(LEFT(D2,LEN(D2)-5),".",",",1),"")+0,"") ->  | AB2: =IF(T2="","",IFERROR(YEAR(T2),"")) -> 
K3: Номер лицевого счёта: | N3: =CONCATENATE(K6,", кв.",L8) -> , кв.19 | S3: =IFERROR(VLOOKUP(B3,$N$43:$O$49,2,),"") ->  | T3: =IF(S3="оплата",V3,IF(S3="пени",W3,IF(S3="начисление",U3,""))) ->  | U3: =IFERROR(--(SUBSTITUTE(LEFT(C3,SEARCH(" ",C3)+3),"ая","ай")&" "&RIGHT(C3,4)),"") ->  | V3: =IF(LEFT(B3,6)="Оплата",F3,"") ->  | W3: =IFERROR(--SUBSTITUTE(SUBSTITUTE(MID(H3,1,(FIND(",",H3,1))),",",),"мая","май"),"") ->  | X3: =IF(S3="начисление",W3,"") ->  | Y3: =IF(S3="Начисление",U3+19,"") ->  | Z3: =IF(S3="оплата",IF(E3="","Ручное",E3),"") ->  | AA3: =IFERROR(IF(OR(S3="оплата",S3="Начисление",S3="перерасчет",S3="Пени",S3="Пени перерасчет",S3="Начисление пени"),SUBSTITUTE(LEFT(D3,LEN(D3)-5),".",",",1),"")+0,"") -> 
A4: 2016-09-01 | D4: 349.64 | E4: 178.61 | F4: 0.00 | G4: 0.00 | H4: 0.00 | I4: 855.15 | J4: -326.90 | K4: 0000031795281
A5: № | B5: Операция | C5: Дата | D5: Сумма | E5: Источник | F5: Дата оплаты | G5: Дополнительно | H5: Дата создания | I5: Пользователь | K5: Адрес дома: | N5: Начисление | O5: =SUMIF(S:S,N5,AA:AA) -> 4339.11
A6: 34824840 | B6: Оплата (За капитальный ремонт) | C6: 1 Сентября 2016 | D6: 855.15 руб. | E6: Сбербанк | F6: 2016-08-31 | G6: Банковская пачка | H6: 1 сен 2016, 04:56:44 | I6: Kira | N6: Оплата | O6: =SUMIF(S:S,N6,AA:AA) -> 4792.15 | S6: Оплата | T6: 2016-08-31 | U6: 2016-09-01 | V6: 2016-08-31 | W6: 2016-09-01 | Z6: Сбербанк | AA6: 855.15 | AB6: 2016 | AC6: =MAX(X:X) -> 2016-09-21
A7: 35651494 | B7: Начисление пени (Пени по минимальному взносу) | C7: 1 Сентября 2016 | D7: 0.00 руб. | H7: 21 сен 2016, 22:10:56 | I7: Kira | K7: Номер квартиры: | N7: Перерасчет | O7: =SUMIF(S:S,N7,AA:AA) -> 126.14 | S7: Пени | T7: 2016-09-21 | U7: 2016-09-01 | W7: 2016-09-21 | AA7: 0 | AB7: 2016
A8: 35651495 | B8: Начисление (По минимальному взносу) | C8: 1 Сентября 2016 | D8: 178.61 руб. | H8: 21 сен 2016, 22:10:56 | I8: Kira | K8: Номер квартиры: | L8: 19 | N8: Пени перерасчет | O8: =SUMIF(S:S,N8,AA:AA) -> 0 | S8: Начисление | T8: 2016-09-01 | U8: 2016-09-01 | W8: 2016-09-21 | X8: 2016-09-21 | Y8: 2016-09-20 | AA8: 178.61 | AB8: 2016
A9: [-] авг 2016 | D9: 171.03 | E9: 178.61 | F9: 0.00 | G9: 0.00 | H9: 0.00 | I9: 0.00 | J9: 349.64 | N9: Пени | O9: =SUMIF(S:S,N9,AA:AA) -> 0
A10: № | B10: Операция | C10: Дата | D10: Сумма | E10: Источник | F10: Дата оплаты | G10: Дополнительно | H10: Дата создания | I10: Пользователь | N10: Долг | O10: =O5-O6+O7 -> -326.9
A11: 34532004 | B11: Начисление (По минимальному взносу) | C11: 1 Августа 2016 | D11: 178.61 руб. | H11: 22 авг 2016, 20:21:47 | I11: Kira | N11: Ежемесячно | O11: =VLOOKUP("начисление",S:AA,9,) -> 178.61 | S11: Начисление | T11: 2016-08-01 | U11: 2016-08-01 | W11: 2016-08-22 | X11: 2016-08-22 | Y11: 2016-08-20 | AA11: 178.61 | AB11: 2016
A12: [-] июл 2016 | D12: -7.58 | E12: 178.61 | F12: 0.00 | G12: 0.00 | H12: 0.00 | I12: 0.00 | J12: 171.03 | N12: колич месяцев | O12: =COUNTIF($S$1:$S$154,"начисление") -> 25
A13: № | B13: Операция | C13: Дата | D13: Сумма | E13: Источник | F13: Дата оплаты | G13: Дополнительно | H13: Дата создания | I13: Пользователь
A14: 33063397 | B14: Начисление (По минимальному взносу) | C14: 1 Июля 2016 | D14: 178.61 руб. | H14: 22 июл 2016, 15:44:56 | I14: admin | N14: Собственник | O14: =O6-O19 -> 4792.15 | S14: Начисление | T14: 2016-07-01 | U14: 2016-07-01 | W14: 2016-07-22 | X14: 2016-07-22 | Y14: 2016-07-20 | AA14: 178.61 | AB14: 2016
A15: [-] июн 2016 | D15: -186.19 | E15: 178.61 | F15: 0.00 | G15: 0.00 | H15: 0.00 | I15: 0.00 | J15: -7.58 | N15: Льгота | O15: =O19 -> 0
A16: № | B16: Операция | C16: Дата | D16: Сумма | E16: Источник | F16: Дата оплаты | G16: Дополнительно | H16: Дата создания | I16: Пользователь | N16: Долг+пени | O16: =O10+O9 -> -326.9
A17: 29540885 | B17: Начисление пени (Пени по минимальному взносу) | C17: 1 Июня 2016 | D17: 0.00 руб. | H17: 22 июн 2016, 00:31:44 | I17: Kira | N17: Нач+пен+перер | O17: =O5+O7+O9 -> 4465.25 | S17: Пени | T17: 2016-06-22 | U17: 2016-06-01 | W17: 2016-06-22 | AA17: 0 | AB17: 2016
A18: 29540886 | B18: Начисление (По минимальному взносу) | C18: 1 Июня 2016 | D18: 178.61 руб. | H18: 22 июн 2016, 00:31:44 | I18: Kira | N18: РКЦ Железногорск | O18: =SUMIF(Z:Z,N18,AA:AA) -> 0 | S18: Начисление | T18: 2016-06-01 | U18: 2016-06-01 | W18: 2016-06-22 | X18: 2016-06-22 | Y18: 2016-06-20 | AA18: 178.61 | AB18: 2016
A19: [-] май 2016 | D19: -195.20 | E19: 178.61 | F19: 0.00 | G19: 0.00 | H19: 0.00 | I19: 169.60 | J19: -186.19 | N19: ВСТКБ | O19: =SUMIF(Z:Z,N19,AA:AA) -> 0
A20: № | B20: Операция | C20: Дата | D20: Сумма | E20: Источник | F20: Дата оплаты | G20: Дополнительно | H20: Дата создания | I20: Пользователь | N20: Сбербанк | O20: =SUMIF(Z:Z,N20,AA:AA) -> 4792.15
A21: 26626888 | B21: Оплата (По минимальному взносу) | C21: 18 Мая 2016 | D21: 169.60 руб. | E21: Сбербанк | F21: 2016-05-17 | G21: Банковская пачка | H21: 18 мая 2016, 06:32:47 | I21: Kira | N21: Город | O21: =SUMIF(Z:Z,N21,AA:AA) -> 0 | S21: Оплата | T21: 2016-05-17 | U21: 2016-05-18 | V21: 2016-05-17 | W21: 2016-05-18 | Z21: Сбербанк | AA21: 169.6 | AB21: 2016
A22: 27608709 | B22: Начисление пени (Пени по минимальному взносу) | C22: 1 Мая 2016 | D22: 0.00 руб. | H22: 23 мая 2016, 04:55:42 | I22: Kira | N22: ИПК | O22: =SUMIF(Z:Z,N22,AA:AA) -> 0 | S22: Пени | T22: 2016-05-23 | U22: 2016-05-01 | W22: 2016-05-23 | AA22: 0 | AB22: 2016
A23: 27608710 | B23: Начисление (По минимальному взносу) | C23: 1 Мая 2016 | D23: 178.61 руб. | H23: 23 мая 2016, 04:55:42 | I23: Kira | N23: ЖЭУ-6 | O23: =SUMIF(Z:Z,N23,AA:AA) -> 0 | S23: Начисление | T23: 2016-05-01 | U23: 2016-05-01 | W23: 2016-05-23 | X23: 2016-05-23 | Y23: 2016-05-20 | AA23: 178.61 | AB23: 2016
A24: [-] апр 2016 | D24: -373.81 | E24: 178.61 | F24: 0.00 | G24: 0.00 | H24: 0.00 | I24: 0.00 | J24: -195.20 | N24: ВТБ24 | O24: =SUMIF(Z:Z,N24,AA:AA) -> 0
A25: № | B25: Операция | C25: Дата | D25: Сумма | E25: Источник | F25: Дата оплаты | G25: Дополнительно | H25: Дата создания | I25: Пользователь | N25: Почта | O25: =SUMIF(Z:Z,N25,AA:AA) -> 0 | S25: =IFERROR(VLOOKUP(B25,$N$43:$O$49,2,),"") ->  | T25: =IF(S25="оплата",V25,IF(S25="пени",W25,IF(S25="начисление",U25,""))) ->  | U25: =IFERROR(--(SUBSTITUTE(LEFT(C25,SEARCH(" ",C25)+3),"ая","ай")&" "&RIGHT(C25,4)),"") ->  | V25: =IF(LEFT(B25,6)="Оплата",F25,"") ->  | W25: =IFERROR(--SUBSTITUTE(SUBSTITUTE(MID(H25,1,(FIND(",",H25,1))),",",),"мая","май"),"") ->  | X25: =IF(S25="начисление",W25,"") ->  | Y25: =IF(S25="Начисление",U25+19,"") ->  | Z25: =IF(S25="оплата",IF(E25="","Ручное",E25),"") ->  | AA25: =IFERROR(IF(OR(S25="оплата",S25="Начисление",S25="перерасчет",S25="Пени",S25="Пени перерасчет",S25="Начисление пени"),SUBSTITUTE(LEFT(D25,LEN(D25)-5),".",",",1),"")+0,"") -> 
A26: 25847062 | B26: Начисление (По минимальному взносу) | C26: 1 Апреля 2016 | D26: 178.61 руб. | H26: 22 апр 2016, 06:03:54 | I26: Kira | N26: Жилком | O26: =SUMIF(Z:Z,N26,AA:AA) -> 0 | S26: Начисление | T26: 2016-04-01 | U26: 2016-04-01 | W26: 2016-04-22 | X26: 2016-04-22 | Y26: 2016-04-20 | AA26: 178.61 | AB26: 2016
A27: [-] мар 2016 | D27: 340.58 | E27: 178.61 | F27: 0.00 | G27: 0.00 | H27: 0.00 | I27: 893.00 | J27: -373.81 | N27: Салвент | O27: =SUMIF(Z:Z,N27,AA:AA) -> 0
A28: № | B28: Операция | C28: Дата | D28: Сумма | E28: Источник | F28: Дата оплаты | G28: Дополнительно | H28: Дата создания | I28: Пользователь | N28: =SMALL(IF(S1:S154=N5,T1:T154),1) -> 2014-09-01 | O28: =LARGE(IF(S1:S154=N5,T1:T154),1) -> 2016-09-01
A29: 23953960 | B29: Начисление (По минимальному взносу) | C29: 1 Марта 2016 | D29: 178.61 руб. | H29: 22 мар 2016, 19:49:54 | I29: Kira | N29: ="Период: "&TEXT(N28,"ММММ ГГГГ")& " - "&TEXT(O28,"ММММ ГГГГ") -> Период: Сентябрь 2014 - Сентябрь 2016 | S29: Начисление | T29: 2016-03-01 | U29: 2016-03-01 | W29: 2016-03-22 | X29: 2016-03-22 | Y29: 2016-03-20 | AA29: 178.61 | AB29: 2016
A30: 24102038 | B30: Оплата (За капитальный ремонт) | C30: 23 Марта 2016 | D30: 893.00 руб. | E30: Сбербанк | F30: 2016-03-23 | G30: Банковская пачка | H30: 24 мар 2016, 04:23:16 | I30: Kira | S30: Оплата | T30: 2016-03-23 | U30: 2016-03-23 | V30: 2016-03-23 | W30: 2016-03-24 | Z30: Сбербанк | AA30: 893 | AB30: 2016
A31: [-] фев 2016 | D31: 161.97 | E31: 178.61 | F31: 0.00 | G31: 0.00 | H31: 0.00 | I31: 0.00 | J31: 340.58 | N31: =CONCATENATE("Начислено всего: ",ROUND(O5+O7+O9+O8,2)," руб.",IF(O5-O17=0,"",", в т.ч.: "),IF(O7="","",IF(O7=0,"","перерасчет "&O7&" руб."&IF(O9<>0,", ",""))),IF(O9=0,"","пени "&O9+O8&" руб.")) -> Начислено всего: 4465,25 руб., в т.ч.: перерасчет 126,14 руб.
A32: № | B32: Операция | C32: Дата | D32: Сумма | E32: Источник | F32: Дата оплаты | G32: Дополнительно | H32: Дата создания | I32: Пользователь | N32: ="Оплачено всего: "&O6&" руб."&IF(O15=0,"",", в т.ч.: оплата "&O14&" руб., льгота "&O15&" руб.") -> Оплачено всего: 4792,15 руб.
A33: 22648352 | B33: Начисление (По минимальному взносу) | C33: 1 Февраля 2016 | D33: 178.61 руб. | H33: 25 фев 2016, 13:29:08 | I33: admin | S33: Начисление | T33: 2016-02-01 | U33: 2016-02-01 | W33: 2016-02-25 | X33: 2016-02-25 | Y33: 2016-02-20 | AA33: 178.61 | AB33: 2016
A34: [-] янв 2016 | D34: -16.64 | E34: 178.61 | F34: 0.00 | G34: 0.00 | H34: 0.00 | I34: 0.00 | J34: 161.97 | O34: Начисление | P34: Оплата | Q34: Пени | AB34: =IF(T34="","",IFERROR(YEAR(T34),"")) -> 
A35: № | B35: Операция | C35: Дата | D35: Сумма | E35: Источник | F35: Дата оплаты | G35: Дополнительно | H35: Дата создания | I35: Пользователь | N35: =YEAR(TODAY()) -> 2016 | O35: =SUMIFS($AA$2:$AA$154,$S$2:$S$154,O$34,$AB$2:$AB$154,$N35) -> 1607.49 | P35: =SUMIFS($AA$2:$AA$154,$S$2:$S$154,P$34,$AB$2:$AB$154,$N35) -> 1917.75 | Q35: =SUMIFS($AA$2:$AA$154,$S$2:$S$154,Q$34,$AB$2:$AB$154,$N35) -> 0
A36: 21388484 | B36: Начисление (По минимальному взносу) | C36: 1 Января 2016 | D36: 178.61 руб. | H36: 22 янв 2016, 23:28:38 | I36: Dyn | N36: =IF(N$35-COUNT(N$35:N35)<2014,"",N$35-COUNT(N$35:N35)) -> 2015 | O36: =SUMIFS($AA$2:$AA$154,$S$2:$S$154,O$34,$AB$2:$AB$154,$N36) -> 2053.22 | P36: =SUMIFS($AA$2:$AA$154,$S$2:$S$154,P$34,$AB$2:$AB$154,$N36) -> 2874.4 | Q36: =SUMIFS($AA$2:$AA$154,$S$2:$S$154,Q$34,$AB$2:$AB$154,$N36) -> 0 | S36: Начисление | T36: 2016-01-01 | U36: 2016-01-01 | W36: 2016-01-22 | X36: 2016-01-22 | Y36: 2016-01-20 | AA36: 178.61 | AB36: 2016
A37: [-] дек 2015 | D37: -195.25 | E37: 178.61 | F37: 0.00 | G37: 0.00 | H37: 0.00 | I37: 0.00 | J37: -16.64 | N37: =IF(N$35-COUNT(N$35:N36)<2014,"",N$35-COUNT(N$35:N36)) -> 2014 | O37: =SUMIFS($AA$2:$AA$154,$S$2:$S$154,O$34,$AB$2:$AB$154,$N37) -> 678.4 | P37: =SUMIFS($AA$2:$AA$154,$S$2:$S$154,P$34,$AB$2:$AB$154,$N37) -> 0 | Q37: =SUMIFS($AA$2:$AA$154,$S$2:$S$154,Q$34,$AB$2:$AB$154,$N37) -> 0
A38: № | B38: Операция | C38: Дата | D38: Сумма | E38: Источник | F38: Дата оплаты | G38: Дополнительно | H38: Дата создания | I38: Пользователь | N38: =IF(N$35-COUNT(N$35:N37)<2014,"",N$35-COUNT(N$35:N37)) ->  | O38: =SUMIFS($AA$2:$AA$154,$S$2:$S$154,O$34,$AB$2:$AB$154,$N38) -> 0 | P38: =SUMIFS($AA$2:$AA$154,$S$2:$S$154,P$34,$AB$2:$AB$154,$N38) -> 0 | Q38: =SUMIFS($AA$2:$AA$154,$S$2:$S$154,Q$34,$AB$2:$AB$154,$N38) -> 0
A39: 17144574 | B39: Начисление (По минимальному взносу) | C39: 1 Декабря 2015 | D39: 178.61 руб. | H39: 6 ноя 2015, 10:47:58 | I39: Avi | M39: =IF(M$35-COUNT(M$35:M38)<2014,"",M$35-COUNT(M$35:M38)) ->  | S39: Начисление | T39: 2015-12-01 | U39: 2015-12-01 | W39: 2015-11-06 | X39: 2015-11-06 | Y39: 2015-12-20 | AA39: 178.61 | AB39: 2015
A40: [-] ноя 2015 | D40: 2 374.40 | E40: 178.61 | F40: 126.14 | G40: 0.00 | H40: 0.00 | I40: 2 874.40 | J40: -195.25
A41: № | B41: Операция | C41: Дата | D41: Сумма | E41: Источник | F41: Дата оплаты | G41: Дополнительно | H41: Дата создания | I41: Пользователь
A42: 17144559 | B42: Перерасчёт (По минимальному взносу) | C42: 6 Ноября 2015 | D42: 9.01 руб. | G42: изменение площади на значение 33.7 (01.09.2014 - 30.09.2014) | H42: 6 ноя 2015, 10:47:44 | S42: Перерасчет | U42: 2015-11-06 | W42: 2015-11-06 | AA42: 9.01
A43: 17144560 | B43: Перерасчёт (По минимальному взносу) | C43: 6 Ноября 2015 | D43: 9.01 руб. | G43: изменение площади на значение 33.7 (01.10.2014 - 31.10.2014) | H43: 6 ноя 2015, 10:47:44 | N43: Начисление (По минимальному взносу) | O43: Начисление | S43: Перерасчет | U43: 2015-11-06 | W43: 2015-11-06 | AA43: 9.01
A44: 17144561 | B44: Перерасчёт (По минимальному взносу) | C44: 6 Ноября 2015 | D44: 9.01 руб. | G44: изменение площади на значение 33.7 (01.11.2014 - 30.11.2014) | H44: 6 ноя 2015, 10:47:44 | N44: Перерасчёт (По минимальному взносу) | O44: Перерасчет | S44: Перерасчет | U44: 2015-11-06 | W44: 2015-11-06 | AA44: 9.01
A45: 17144562 | B45: Перерасчёт (По минимальному взносу) | C45: 6 Ноября 2015 | D45: 9.01 руб. | G45: изменение площади на значение 33.7 (01.12.2014 - 31.12.2014) | H45: 6 ноя 2015, 10:47:44 | N45: Начисление пени (Пени по минимальному взносу) | O45: Пени | S45: Перерасчет | U45: 2015-11-06 | W45: 2015-11-06 | AA45: 9.01
A46: 17144563 | B46: Перерасчёт (По минимальному взносу) | C46: 6 Ноября 2015 | D46: 9.01 руб. | G46: изменение площади на значение 33.7 (01.01.2015 - 31.01.2015) | H46: 6 ноя 2015, 10:47:44 | N46: Перерасчёт (Пени по минимальному взносу) | O46: Пени перерасчет | S46: Перерасчет | U46: 2015-11-06 | W46: 2015-11-06 | AA46: 9.01
A47: 17144564 | B47: Перерасчёт (По минимальному взносу) | C47: 6 Ноября 2015 | D47: 9.01 руб. | G47: изменение площади на значение 33.7 (01.02.2015 - 28.02.2015) | H47: 6 ноя 2015, 10:47:44 | N47: Пени перерасчет | O47: Пени перерасчет | S47: Перерасчет | U47: 2015-11-06 | W47: 2015-11-06 | AA47: 9.01
A48: 17144565 | B48: Перерасчёт (По минимальному взносу) | C48: 6 Ноября 2015 | D48: 9.01 руб. | G48: изменение площади на значение 33.7 (01.03.2015 - 31.03.2015) | H48: 6 ноя 2015, 10:47:44 | N48: Оплата (За капитальный ремонт) | O48: Оплата | S48: Перерасчет | U48: 2015-11-06 | W48: 2015-11-06 | AA48: 9.01
A49: 17144566 | B49: Перерасчёт (По минимальному взносу) | C49: 6 Ноября 2015 | D49: 9.01 руб. | G49: изменение площади на значение 33.7 (01.04.2015 - 30.04.2015) | H49: 6 ноя 2015, 10:47:44 | N49: Оплата (По минимальному взносу) | O49: Оплата | S49: Перерасчет | U49: 2015-11-06 | W49: 2015-11-06 | AA49: 9.01
A50: 17144567 | B50: Перерасчёт (По минимальному взносу) | C50: 6 Ноября 2015 | D50: 9.01 руб. | G50: изменение площади на значение 33.7 (01.05.2015 - 31.05.2015) | H50: 6 ноя 2015, 10:47:44 | N50: января | O50: январь | S50: Перерасчет | U50: 2015-11-06 | W50: 2015-11-06 | AA50: 9.01
A51: 17144568 | B51: Перерасчёт (По минимальному взносу) | C51: 6 Ноября 2015 | D51: 9.01 руб. | G51: изменение площади на значение 33.7 (01.06.2015 - 30.06.2015) | H51: 6 ноя 2015, 10:47:44 | N51: февраля | O51: февраль | S51: Перерасчет | U51: 2015-11-06 | W51: 2015-11-06 | AA51: 9.01
A52: 17144569 | B52: Перерасчёт (По минимальному взносу) | C52: 6 Ноября 2015 | D52: 9.01 руб. | G52: изменение площади на значение 33.7 (01.07.2015 - 31.07.2015) | H52: 6 ноя 2015, 10:47:44 | N52: марта | O52: март | S52: Перерасчет | U52: 2015-11-06 | W52: 2015-11-06 | AA52: 9.01
A53: 17144570 | B53: Перерасчёт (По минимальному взносу) | C53: 6 Ноября 2015 | D53: 9.01 руб. | G53: изменение площади на значение 33.7 (01.08.2015 - 31.08.2015) | H53: 6 ноя 2015, 10:47:45 | N53: апреля | O53: апрель | S53: Перерасчет | U53: 2015-11-06 | W53: 2015-11-06 | AA53: 9.01
A54: 17144571 | B54: Перерасчёт (По минимальному взносу) | C54: 6 Ноября 2015 | D54: 9.01 руб. | G54: изменение площади на значение 33.7 (01.09.2015 - 30.09.2015) | H54: 6 ноя 2015, 10:47:45 | N54: мая | O54: май | S54: Перерасчет | U54: 2015-11-06 | W54: 2015-11-06 | AA54: 9.01
A55: 17144572 | B55: Перерасчёт (По минимальному взносу) | C55: 6 Ноября 2015 | D55: 9.01 руб. | G55: изменение площади на значение 33.7 (01.10.2015 - 31.10.2015) | H55: 6 ноя 2015, 10:47:45 | N55: июня | O55: июнь | S55: Перерасчет | U55: 2015-11-06 | W55: 2015-11-06 | AA55: 9.01
A56: 17144573 | B56: Начисление (По минимальному взносу) | C56: 1 Ноября 2015 | D56: 178.61 руб. | H56: 6 ноя 2015, 10:47:54 | I56: Avi | N56: июля | O56: июль | S56: Начисление | T56: 2015-11-01 | U56: 2015-11-01 | W56: 2015-11-06 | X56: 2015-11-06 | Y56: 2015-11-20 | AA56: 178.61 | AB56: 2015
A57: 17235373 | B57: Оплата (По минимальному взносу) | C57: 9 Ноября 2015 | D57: 2 374.40 руб. | E57: Сбербанк | F57: 2015-11-06 | G57: Банковская пачка | H57: 9 ноя 2015, 12:09:06 | N57: августа | O57: август | S57: Оплата | T57: 2015-11-06 | U57: 2015-11-09 | V57: 2015-11-06 | W57: 2015-11-09 | Z57: Сбербанк | AA57: 2374.4 | AB57: 2015
A58: 17575423 | B58: Оплата (За капитальный ремонт) | C58: 20 Ноября 2015 | D58: 500.00 руб. | E58: Сбербанк | F58: 2015-11-19 | G58: Банковская пачка | H58: 20 ноя 2015, 10:02:52 | N58: сентября | O58: сентябрь | S58: Оплата | T58: 2015-11-19 | U58: 2015-11-20 | V58: 2015-11-19 | W58: 2015-11-20 | Z58: Сбербанк | AA58: 500 | AB58: 2015
A59: [-] окт 2015 | D59: 2 204.80 | E59: 169.60 | F59: 0.00 | G59: 0.00 | H59: 0.00 | I59: 0.00 | J59: 2 374.40 | N59: октября | O59: октябрь
A60: № | B60: Операция | C60: Дата | D60: Сумма | E60: Источник | F60: Дата оплаты | G60: Дополнительно | H60: Дата создания | I60: Пользователь | N60: ноября | O60: ноябрь
A61: 16968323 | B61: Начисление (По минимальному взносу) | C61: 1 Октября 2015 | D61: 169.60 руб. | H61: 26 окт 2015, 06:13:13 | I61: Kam | N61: декабря | O61: декабрь | S61: Начисление | T61: 2015-10-01 | U61: 2015-10-01 | W61: 2015-10-26 | X61: 2015-10-26 | Y61: 2015-10-20 | AA61: 169.6 | AB61: 2015
A62: [-] сен 2015 | D62: 2 035.20 | E62: 169.60 | F62: 0.00 | G62: 0.00 | H62: 0.00 | I62: 0.00 | J62: 2 204.80 | N62: янв | O62: январь
A63: № | B63: Операция | C63: Дата | D63: Сумма | E63: Источник | F63: Дата оплаты | G63: Дополнительно | H63: Дата создания | I63: Пользователь | N63: фев | O63: февраль
A64: 16968322 | B64: Начисление (По минимальному взносу) | C64: 1 Сентября 2015 | D64: 169.60 руб. | H64: 26 окт 2015, 06:13:08 | I64: Kam | N64: мар | O64: март | S64: Начисление | T64: 2015-09-01 | U64: 2015-09-01 | W64: 2015-10-26 | X64: 2015-10-26 | Y64: 2015-09-20 | AA64: 169.6 | AB64: 2015
A65: [-] авг 2015 | D65: 1 865.60 | E65: 169.60 | F65: 0.00 | G65: 0.00 | H65: 0.00 | I65: 0.00 | J65: 2 035.20 | N65: апр | O65: апрель
A66: № | B66: Операция | C66: Дата | D66: Сумма | E66: Источник | F66: Дата оплаты | G66: Дополнительно | H66: Дата создания | I66: Пользователь | N66: мая | O66: май | AB66: =IF(T66="","",IFERROR(YEAR(T66),"")) -> 
A67: 16968321 | B67: Начисление (По минимальному взносу) | C67: 1 Августа 2015 | D67: 169.60 руб. | H67: 26 окт 2015, 06:13:00 | I67: Kam | N67: июн | O67: июнь | S67: Начисление | T67: 2015-08-01 | U67: 2015-08-01 | W67: 2015-10-26 | X67: 2015-10-26 | Y67: 2015-08-20 | AA67: 169.6 | AB67: 2015
A68: [-] июл 2015 | D68: 1 696.00 | E68: 169.60 | F68: 0.00 | G68: 0.00 | H68: 0.00 | I68: 0.00 | J68: 1 865.60 | N68: июл | O68: июль
A69: № | B69: Операция | C69: Дата | D69: Сумма | E69: Источник | F69: Дата оплаты | G69: Дополнительно | H69: Дата создания | I69: Пользователь | N69: авг | O69: август
A70: 16968320 | B70: Начисление (По минимальному взносу) | C70: 1 Июля 2015 | D70: 169.60 руб. | H70: 26 окт 2015, 06:12:56 | I70: Kam | N70: сен | O70: сентябрь | S70: Начисление | T70: 2015-07-01 | U70: 2015-07-01 | W70: 2015-10-26 | X70: 2015-10-26 | Y70: 2015-07-20 | AA70: 169.6 | AB70: 2015
A71: [-] июн 2015 | D71: 1 526.40 | E71: 169.60 | F71: 0.00 | G71: 0.00 | H71: 0.00 | I71: 0.00 | J71: 1 696.00 | N71: окт | O71: октябрь
A72: № | B72: Операция | C72: Дата | D72: Сумма | E72: Источник | F72: Дата оплаты | G72: Дополнительно | H72: Дата создания | I72: Пользователь | N72: ноя | O72: ноябрь
A73: 16968319 | B73: Начисление (По минимальному взносу) | C73: 1 Июня 2015 | D73: 169.60 руб. | H73: 26 окт 2015, 06:12:52 | I73: Kam | N73: дек | O73: декабрь | S73: Начисление | T73: 2015-06-01 | U73: 2015-06-01 | W73: 2015-10-26 | X73: 2015-10-26 | Y73: 2015-06-20 | AA73: 169.6 | AB73: 2015
A74: [-] май 2015 | D74: 1 356.80 | E74: 169.60 | F74: 0.00 | G74: 0.00 | H74: 0.00 | I74: 0.00 | J74: 1 526.40 | N74: 1 | O74: января
A75: № | B75: Операция | C75: Дата | D75: Сумма | E75: Источник | F75: Дата оплаты | G75: Дополнительно | H75: Дата создания | I75: Пользователь | N75: 2 | O75: февраля
A76: 16968318 | B76: Начисление (По минимальному взносу) | C76: 1 Мая 2015 | D76: 169.60 руб. | H76: 26 окт 2015, 06:12:48 | I76: Kam | N76: 3 | O76: марта | S76: Начисление | T76: 2015-05-01 | U76: 2015-05-01 | W76: 2015-10-26 | X76: 2015-10-26 | Y76: 2015-05-20 | AA76: 169.6 | AB76: 2015
A77: [-] апр 2015 | D77: 1 187.20 | E77: 169.60 | F77: 0.00 | G77: 0.00 | H77: 0.00 | I77: 0.00 | J77: 1 356.80 | N77: 4 | O77: апреля
A78: № | B78: Операция | C78: Дата | D78: Сумма | E78: Источник | F78: Дата оплаты | G78: Дополнительно | H78: Дата создания | I78: Пользователь | N78: 5 | O78: мая
A79: 16968317 | B79: Начисление (По минимальному взносу) | C79: 1 Апреля 2015 | D79: 169.60 руб. | H79: 26 окт 2015, 06:12:43 | I79: Kam | N79: 6 | O79: июня | S79: Начисление | T79: 2015-04-01 | U79: 2015-04-01 | W79: 2015-10-26 | X79: 2015-10-26 | Y79: 2015-04-20 | AA79: 169.6 | AB79: 2015
A80: [-] мар 2015 | D80: 1 017.60 | E80: 169.60 | F80: 0.00 | G80: 0.00 | H80: 0.00 | I80: 0.00 | J80: 1 187.20 | N80: 7 | O80: июля
A81: № | B81: Операция | C81: Дата | D81: Сумма | E81: Источник | F81: Дата оплаты | G81: Дополнительно | H81: Дата создания | I81: Пользователь | N81: 8 | O81: августа
A82: 16968316 | B82: Начисление (По минимальному взносу) | C82: 1 Марта 2015 | D82: 169.60 руб. | H82: 26 окт 2015, 06:12:39 | I82: Kam | N82: 9 | O82: сентября | S82: Начисление | T82: 2015-03-01 | U82: 2015-03-01 | W82: 2015-10-26 | X82: 2015-10-26 | Y82: 2015-03-20 | AA82: 169.6 | AB82: 2015
A83: [-] фев 2015 | D83: 848.00 | E83: 169.60 | F83: 0.00 | G83: 0.00 | H83: 0.00 | I83: 0.00 | J83: 1 017.60 | N83: 10 | O83: октября
A84: № | B84: Операция | C84: Дата | D84: Сумма | E84: Источник | F84: Дата оплаты | G84: Дополнительно | H84: Дата создания | I84: Пользователь | N84: 11 | O84: ноября
A85: 16968315 | B85: Начисление (По минимальному взносу) | C85: 1 Февраля 2015 | D85: 169.60 руб. | H85: 26 окт 2015, 06:12:34 | I85: Kam | N85: 12 | O85: декабря | S85: Начисление | T85: 2015-02-01 | U85: 2015-02-01 | W85: 2015-10-26 | X85: 2015-10-26 | Y85: 2015-02-20 | AA85: 169.6 | AB85: 2015
A86: [-] янв 2015 | D86: 678.40 | E86: 169.60 | F86: 0.00 | G86: 0.00 | H86: 0.00 | I86: 0.00 | J86: 848.00 | N86: январь | O86: января
A87: № | B87: Операция | C87: Дата | D87: Сумма | E87: Источник | F87: Дата оплаты | G87: Дополнительно | H87: Дата создания | I87: Пользователь | N87: февраль | O87: февраля
A88: 16968314 | B88: Начисление (По минимальному взносу) | C88: 1 Января 2015 | D88: 169.60 руб. | H88: 26 окт 2015, 06:12:29 | I88: Kam | N88: март | O88: марта | S88: Начисление | T88: 2015-01-01 | U88: 2015-01-01 | W88: 2015-10-26 | X88: 2015-10-26 | Y88: 2015-01-20 | AA88: 169.6 | AB88: 2015
A89: [-] дек 2014 | D89: 508.80 | E89: 169.60 | F89: 0.00 | G89: 0.00 | H89: 0.00 | I89: 0.00 | J89: 678.40 | N89: апрель | O89: апреля | S89: =IFERROR(VLOOKUP(B89,$N$43:$O$49,2,),"") ->  | T89: =IF(S89="оплата",V89,IF(S89="пени",W89,IF(S89="начисление",U89,""))) ->  | U89: =IFERROR(--(SUBSTITUTE(LEFT(C89,SEARCH(" ",C89)+3),"ая","ай")&" "&RIGHT(C89,4)),"") ->  | V89: =IF(LEFT(B89,6)="Оплата",F89,"") ->  | W89: =IFERROR(--SUBSTITUTE(SUBSTITUTE(MID(H89,1,(FIND(",",H89,1))),",",),"мая","май"),"") ->  | X89: =IF(S89="начисление",W89,"") ->  | Y89: =IF(S89="Начисление",U89+19,"") ->  | Z89: =IF(S89="оплата",IF(E89="","Ручное",E89),"") ->  | AA89: =IFERROR(IF(OR(S89="оплата",S89="Начисление",S89="перерасчет",S89="Пени",S89="Пени перерасчет",S89="Начисление пени"),SUBSTITUTE(LEFT(D89,LEN(D89)-5),".",",",1),"")+0,"") -> 
A90: № | B90: Операция | C90: Дата | D90: Сумма | E90: Источник | F90: Дата оплаты | G90: Дополнительно | H90: Дата создания | I90: Пользователь | N90: май | O90: мая
A91: 16968313 | B91: Начисление (По минимальному взносу) | C91: 1 Декабря 2014 | D91: 169.60 руб. | H91: 26 окт 2015, 06:12:25 | I91: Kam | N91: июнь | O91: июня | S91: Начисление | T91: 2014-12-01 | U91: 2014-12-01 | W91: 2015-10-26 | X91: 2015-10-26 | Y91: 2014-12-20 | AA91: 169.6 | AB91: 2014
A92: [-] ноя 2014 | D92: 339.20 | E92: 169.60 | F92: 0.00 | G92: 0.00 | H92: 0.00 | I92: 0.00 | J92: 508.80 | N92: июль | O92: июля
A93: № | B93: Операция | C93: Дата | D93: Сумма | E93: Источник | F93: Дата оплаты | G93: Дополнительно | H93: Дата создания | I93: Пользователь | N93: август | O93: августа
A94: 16968312 | B94: Начисление (По минимальному взносу) | C94: 1 Ноября 2014 | D94: 169.60 руб. | H94: 26 окт 2015, 06:12:19 | I94: Kam | N94: сентябрь | O94: сентября | S94: Начисление | T94: 2014-11-01 | U94: 2014-11-01 | W94: 2015-10-26 | X94: 2015-10-26 | Y94: 2014-11-20 | AA94: 169.6 | AB94: 2014
A95: [-] окт 2014 | D95: 169.60 | E95: 169.60 | F95: 0.00 | G95: 0.00 | H95: 0.00 | I95: 0.00 | J95: 339.20 | N95: октябрь | O95: октября
A96: № | B96: Операция | C96: Дата | D96: Сумма | E96: Источник | F96: Дата оплаты | G96: Дополнительно | H96: Дата создания | I96: Пользователь | N96: ноябрь | O96: ноября
A97: 16968311 | B97: Начисление (По минимальному взносу) | C97: 1 Октября 2014 | D97: 169.60 руб. | H97: 26 окт 2015, 06:12:05 | I97: Kam | N97: декабрь | O97: декабря | S97: Начисление | T97: 2014-10-01 | U97: 2014-10-01 | W97: 2015-10-26 | X97: 2015-10-26 | Y97: 2014-10-20 | AA97: 169.6 | AB97: 2014
A98: [-] сен 2014 | D98: 0.00 | E98: 169.60 | F98: 0.00 | G98: 0.00 | H98: 0.00 | I98: 0.00 | J98: 169.60 | AB98: =IF(T98="","",IFERROR(YEAR(T98),"")) -> 
A99: № | B99: Операция | C99: Дата | D99: Сумма | E99: Источник | F99: Дата оплаты | G99: Дополнительно | H99: Дата создания | I99: Пользователь | N99: 1 | O99: январь
A100: 16968310 | B100: Начисление (По минимальному взносу) | C100: 1 Сентября 2014 | D100: 169.60 руб. | H100: 26 окт 2015, 06:11:58 | I100: Kam | N100: 2 | O100: февраль | S100: Начисление | T100: 2014-09-01 | U100: 2014-09-01 | W100: 2015-10-26 | X100: 2015-10-26 | Y100: 2014-09-20 | AA100: 169.6 | AB100: 2014
N101: 3 | O101: март
N102: 4 | O102: апрель
N103: 5 | O103: май
N104: 6 | O104: июнь
N105: 7 | O105: июль
N106: 8 | O106: август
N107: 9 | O107: сентябрь
N108: 10 | O108: октябрь
N109: 11 | O109: ноябрь
N110: 12 | O110: декабрь
N111: 1 | O111: день
N112: 2 | O112: дня
N113: 3 | O113: дня
N114: 4 | O114: дня
N115: 5 | O115: дней
N116: 6 | O116: дней
N117: 7 | O117: дней
N118: 8 | O118: дней
N119: 9 | O119: дней
N120: 10 | O120: дней
N121: 11 | O121: дней
N122: 12 | O122: дней
N123: 13 | O123: дней
N124: 14 | O124: дней
N125: 15 | O125: дней
N126: 16 | O126: дней
N127: 17 | O127: дней
N128: 18 | O128: дней
N129: 19 | O129: дней
N130: 20 | O130: дней | AB130: =IF(T130="","",IFERROR(YEAR(T130),"")) -> 
N131: 21 | O131: день
N132: 22 | O132: дня
N133: 23 | O133: дня
N134: 24 | O134: дня
N135: 25 | O135: дней
N136: 26 | O136: дней
N137: 27 | O137: дней
N138: 28 | O138: дней
N139: 29 | O139: дней
N140: 30 | O140: дней
N141: 31 | O141: день
N142: 1 | O142: январе
N143: 2 | O143: феврале
N144: 3 | O144: марте
N145: 4 | O145: апреле
N146: 5 | O146: мае
N147: 6 | O147: июне
N148: 7 | O148: июле
N149: 8 | O149: августе
N150: 9 | O150: сентябре
N151: 10 | O151: октябре
N152: 11 | O152: ноябре
N153: 12 | O153: декабре | S153: =IFERROR(VLOOKUP(B153,$N$43:$O$49,2,),"") ->  | T153: =IF(S153="оплата",V153,IF(S153="пени",W153,IF(S153="начисление",U153,""))) ->  | U153: =IFERROR(--(SUBSTITUTE(LEFT(C153,SEARCH(" ",C153)+3),"ая","ай")&" "&RIGHT(C153,4)),"") ->  | V153: =IF(LEFT(B153,6)="Оплата",F153,"") ->  | W153: =IFERROR(--SUBSTITUTE(SUBSTITUTE(MID(H153,1,(FIND(",",H153,1))),",",),"мая","май"),"") ->  | X153: =IF(S153="начисление",W153,"") ->  | Y153: =IF(S153="Начисление",U153+19,"") ->  | Z153: =IF(S153="оплата",IF(E153="","Ручное",E153),"") ->  | AA153: =IFERROR(IF(OR(S153="оплата",S153="Начисление",S153="перерасчет",S153="Пени",S153="Пени перерасчет",S153="Начисление пени"),SUBSTITUTE(LEFT(D153,LEN(D153)-5),".",",",1),"")+0,"") -> 

Sheet Сводная
B1: =IF(C1="",0,C1) -> Сведения об оплатах и начислениях | C1: Сведения об оплатах и начислениях | I1: 1
B2: Дата формирования: 17.10.2016 | C2: Дата формирования: 17.10.2016 | I2: =IFERROR(IF((B1+B2)<1,"",B1+B2),1) -> 1
B3: 0 | I3: 1
B4: Адрес: , кв.19 | C4: Адрес: , кв.19 | G4: Лицевой счет: 0000031795281 | I4: 1
B5: Период: Сентябрь 2014 - Сентябрь 2016 (25 мес.) | C5: Период: Сентябрь 2014 - Сентябрь 2016 (25 мес.) | G5: Переплата: -326,9 | I5: 1
B6: Ежемесячный платеж: 178,61 | C6: Ежемесячный платеж: 178,61 | I6: 1 | BP6: =IFERROR(VLOOKUP(#REF!,$BB$4:$BF$7,5,FALSE),"") -> 
B7: Начислено всего: 4465,25 руб., в т.ч.: перерасчет 126,14 руб. | C7: Начислено всего: 4465,25 руб., в т.ч.: перерасчет 126,14 руб. | I7: 1 | BP7: =IFERROR(VLOOKUP(#REF!,$BB$4:$BF$7,5,FALSE),"") -> 
B8: Оплачено всего: 4792,15 руб. | C8: Оплачено всего: 4792,15 руб. | I8: 1 | BP8: =IFERROR(VLOOKUP(BN8,$BB$4:$BF$7,5,FALSE),"") -> 
B9: 0 | I9: 1
B10: Начисление за весь период | C10: Начисление за весь период | D10: 4339.11 | H10: 0 | I10: 1
B11: Оплата за весь период | C11: Оплата за весь период | D11: 4792.15 | G11: -------------------------------- | H11: 0 | I11: 1
B12: В том числе | C12: В том числе | D12: начисл./оплач. | I12: 1
B13: Всего в 2016 году | C13: Всего в 2016 году | D13: 1607,49 / 1917,75 | I13: 1
B14: 31.08.2016 – Сбербанк | C14: 31.08.2016 – Сбербанк | D14: 855.15 | I14: 1
B15: 17.05.2016 – Сбербанк | C15: 17.05.2016 – Сбербанк | D15: 169.6 | I15: 1
B16: 23.03.2016 – Сбербанк | C16: 23.03.2016 – Сбербанк | D16: 893 | I16: 1
B17: Всего в 2015 году | C17: Всего в 2015 году | D17: 2053,22 / 2874,4 | I17: 1
B18: 06.11.2015 – Сбербанк | C18: 06.11.2015 – Сбербанк | D18: 2374.4 | I18: 1
B19: 19.11.2015 – Сбербанк | C19: 19.11.2015 – Сбербанк | D19: 500 | I19: 1
B20: Всего в 2014 году | C20: Всего в 2014 году | D20: 678,4 / 0 | I20: 1
B21: 0 | C21: =IF(AM11="","",IF(AND(AI11=2015,AM11=0),"",IF(AJ11="","Всего в "&AI11&" году"," "&TEXT(AK11,"ДД.ММ.ГГГГ")&" – "&AL11))) ->  | D21: =IF(C21="","",AM11) ->  | G21: =IF(AV12=2015,"",IF(OR($H$10=0,$H$10=""),"",IF(AY12="","",IF(AX12="","Всего начислено в "&AV12&" г."," "&TEXT(AX12,"ДД.ММ.ГГГГ"))))) ->  | H21: =IF(G21="","",AY12) ->  | I21: 1
B22: 0 | C22: =IF(AM12="","",IF(AND(AI12=2015,AM12=0),"",IF(AJ12="","Всего в "&AI12&" году"," "&TEXT(AK12,"ДД.ММ.ГГГГ")&" – "&AL12))) ->  | D22: =IF(C22="","",AM12) ->  | G22: =IF(AV13=2015,"",IF(OR($H$10=0,$H$10=""),"",IF(AY13="","",IF(AX13="","Всего начислено в "&AV13&" г."," "&TEXT(AX13,"ДД.ММ.ГГГГ"))))) ->  | H22: =IF(G22="","",AY13) -> 
B23: 0 | C23: =IF(AM13="","",IF(AND(AI13=2015,AM13=0),"",IF(AJ13="","Всего в "&AI13&" году"," "&TEXT(AK13,"ДД.ММ.ГГГГ")&" – "&AL13))) ->  | D23: =IF(C23="","",AM13) ->  | G23: =IF(AV14=2015,"",IF(OR($H$10=0,$H$10=""),"",IF(AY14="","",IF(AX14="","Всего начислено в "&AV14&" г."," "&TEXT(AX14,"ДД.ММ.ГГГГ"))))) ->  | H23: =IF(G23="","",AY14) -> 
B24: 0 | C24: =IF(AM14="","",IF(AND(AI14=2015,AM14=0),"",IF(AJ14="","Всего в "&AI14&" году"," "&TEXT(AK14,"ДД.ММ.ГГГГ")&" – "&AL14))) ->  | D24: =IF(C24="","",AM14) ->  | G24: =IF(AV15=2015,"",IF(OR($H$10=0,$H$10=""),"",IF(AY15="","",IF(AX15="","Всего начислено в "&AV15&" г."," "&TEXT(AX15,"ДД.ММ.ГГГГ"))))) ->  | H24: =IF(G24="","",AY15) -> 
B25: 0 | C25: =IF(AM15="","",IF(AND(AI15=2015,AM15=0),"",IF(AJ15="","Всего в "&AI15&" году"," "&TEXT(AK15,"ДД.ММ.ГГГГ")&" – "&AL15))) ->  | D25: =IF(C25="","",AM15) ->  | G25: =IF(AV16=2015,"",IF(OR($H$10=0,$H$10=""),"",IF(AY16="","",IF(AX16="","Всего начислено в "&AV16&" г."," "&TEXT(AX16,"ДД.ММ.ГГГГ"))))) ->  | H25: =IF(G25="","",AY16) -> 

Sheet Собираемость
C1: Сюда -->> | D1: Отчет по начислениям и оплате взносов на капитальный ремонт собственников в разрезе лицевых счетов за период: c 2014-09-01 по 2016-10-14 | AD1: Собираемость!$AC$2:ИНДЕКС(Собираемость!$AH:$AH;СЧЁТ(Собираемость!$AH:$AHB)+3)
D2: многоквартирного дома по адресу: г. Иркутск, Рябикова б-р., д. 22А. Минимальный размер ежемесячного взноса: 7.32 руб. за 1 кв.м. | AC2: =CONCATENATE(D1," ",D2) -> Отчет по начислениям и оплате взносов на капитальный ремонт собственников в разрезе лицевых счетов за период: c 2014-09-01 по 2016-10-14 многоквартирного дома по адресу: г. Иркутск, Рябикова б-р., д. 22А. Минимальный размер ежемесячного взноса: 7.32 руб. за 1 кв.м.
D3: № п/п | E3: № помещения | F3: Наименование собственника | G3: Статус собственника | H3: № лицевого счета | I3: Статус лицевого счета | J3: Общая площадь собственника кв/м | K3: (+)Долг/(-)Переплата на начало периода, руб. | L3: Начислено по тарифу, руб. | M3: Начислено по пени, руб. | N3: Итого начислено, руб | O3: Перерасчет по тарифу, руб. | P3: Перерасчет по пени, руб. | Q3: Итого перерасчет, руб. | R3: Оплачено по тарифу, руб | S3: Оплачено по пене, руб | T3: Итого оплачено, руб. | U3: (+)Долг/ (-)Переплата на конец периода, руб. | V3: % собираемости | AC3: № пом. | AD3: Статус собственника | AE3: Итого начислено, руб. | AF3: Итого оплачено, руб. | AG3: (+)Долг/(-) Переплата на конец периода, руб. | AH3: % собираемости
A4: =IF(E4="","",1) -> 1 | B4: =IF(A4="","",SUM($A$3:A4)) -> 1 | D4: 1 | E4: 28 | F4: Горбунова Елена Александровна | G4: Физическое лицо | H4: 31117949 | I4: Открыт | J4: 66.7 | K4: 0 | L4: 12206 | M4: 8.21 | N4: 12214.21 | O4: 0 | P4: 0 | Q4: 0 | R4: 11234.71 | S4: 0 | T4: 11234.71 | U4: 979.5 | V4: 91.98 | AA4: 1 | AB4: =IFERROR(IF(D4<>"",IF(((D4/2)-INT(D4/2))=0,"ч","н"),""),"") -> н | AC4: =IFERROR(SUBSTITUTE(VLOOKUP($AA4,$B$4:$V$10,4,)," по отчету:",""),"") -> 28 | AD4: =IFERROR(SUBSTITUTE(SUBSTITUTE(VLOOKUP($AA4,$B$4:$V$10,6,),"Физическое лицо","Физ. лицо"),"Юридическое лицо","Юр. лицо"),"") -> Физ. лицо | AE4: =IFERROR(VLOOKUP($AA4,$B$4:$V$10,13,),"") -> 12214.21 | AF4: =IFERROR(VLOOKUP($AA4,$B$4:$V$10,19,),"") -> 11234.71 | AG4: =IFERROR(VLOOKUP($AA4,$B$4:$V$10,20,),"") -> 979.5 | AH4: =IFERROR(VLOOKUP($AA4,$B$4:$V$10,21,),"") -> 91.98
A5: 1 | B5: =IF(A5="","",SUM($A$3:A5)) -> 2 | D5: 2 | E5: 29 | F5: Маркина Элла Александровна | G5: Физическое лицо | H5: 31116128 | I5: Открыт | J5: 46.7 | K5: 0 | L5: 8546 | M5: 281.66 | N5: 8827.66 | O5: 0 | P5: 0 | Q5: 0 | R5: 0 | S5: 0 | T5: 0 | U5: 8827.66 | V5: 0 | AA5: 2 | AB5: =IFERROR(IF(D5<>"",IF(((D5/2)-INT(D5/2))=0,"ч","н"),""),"") -> ч | AC5: =IFERROR(SUBSTITUTE(VLOOKUP($AA5,$B$4:$V$10,4,)," по отчету:",""),"") -> 29 | AD5: =IFERROR(SUBSTITUTE(SUBSTITUTE(VLOOKUP($AA5,$B$4:$V$10,6,),"Физическое лицо","Физ. лицо"),"Юридическое лицо","Юр. лицо"),"") -> Физ. лицо | AE5: =IFERROR(VLOOKUP($AA5,$B$4:$V$10,13,),"") -> 8827.66 | AF5: =IFERROR(VLOOKUP($AA5,$B$4:$V$10,19,),"") -> 0 | AG5: =IFERROR(VLOOKUP($AA5,$B$4:$V$10,20,),"") -> 8827.66 | AH5: =IFERROR(VLOOKUP($AA5,$B$4:$V$10,21,),"") -> 0
A6: 1 | B6: =IF(A6="","",SUM($A$3:A6)) -> 3 | D6: 3 | E6: 29А | F6: Мотоев Михаил Анатольвич | G6: Физическое лицо | H6: 31113285 | I6: Открыт | J6: 18.7 | K6: 0 | L6: 3422 | M6: 0 | N6: 3422 | O6: 0 | P6: 0 | Q6: 0 | R6: 3427.6 | S6: 0 | T6: 3427.6 | U6: -5.6 | V6: 100.16 | AA6: 3 | AB6: н | AC6: =IFERROR(SUBSTITUTE(VLOOKUP($AA6,$B$4:$V$10,4,)," по отчету:",""),"") -> 29А | AD6: =IFERROR(SUBSTITUTE(SUBSTITUTE(VLOOKUP($AA6,$B$4:$V$10,6,),"Физическое лицо","Физ. лицо"),"Юридическое лицо","Юр. лицо"),"") -> Физ. лицо | AE6: =IFERROR(VLOOKUP($AA6,$B$4:$V$10,13,),"") -> 3422 | AF6: =IFERROR(VLOOKUP($AA6,$B$4:$V$10,19,),"") -> 3427.6 | AG6: =IFERROR(VLOOKUP($AA6,$B$4:$V$10,20,),"") -> -5.6 | AH6: =IFERROR(VLOOKUP($AA6,$B$4:$V$10,21,),"") -> 100.16
A7: 1 | B7: =IF(A7="","",SUM($A$3:A7)) -> 4 | D7: 4 | E7: 30 | F7: Комитет городского обустройства администрации города Иркутска | G7: Юридическое лицо | H7: 31209783 | I7: Открыт | J7: 66.6 | K7: 0 | L7: 12187.75 | M7: 0 | N7: 12187.75 | O7: 0 | P7: 0 | Q7: 0 | R7: 12187.79 | S7: 0 | T7: 12187.79 | U7: -0.04 | V7: 100 | AA7: 4 | AB7: ч | AC7: =IFERROR(SUBSTITUTE(VLOOKUP($AA7,$B$4:$V$10,4,)," по отчету:",""),"") -> 30 | AD7: =IFERROR(SUBSTITUTE(SUBSTITUTE(VLOOKUP($AA7,$B$4:$V$10,6,),"Физическое лицо","Физ. лицо"),"Юридическое лицо","Юр. лицо"),"") -> Юр. лицо | AE7: =IFERROR(VLOOKUP($AA7,$B$4:$V$10,13,),"") -> 12187.75 | AF7: =IFERROR(VLOOKUP($AA7,$B$4:$V$10,19,),"") -> 12187.79 | AG7: =IFERROR(VLOOKUP($AA7,$B$4:$V$10,20,),"") -> -0.04 | AH7: =IFERROR(VLOOKUP($AA7,$B$4:$V$10,21,),"") -> 100
B8: =IF(A8="","",SUM($A$3:A8)) ->  | AA8: 5 | AC8: =IFERROR(SUBSTITUTE(VLOOKUP($AA8,$B$4:$V$10,4,)," по отчету:",""),"") ->  | AD8: =IFERROR(SUBSTITUTE(SUBSTITUTE(VLOOKUP($AA8,$B$4:$V$10,6,),"Физическое лицо","Физ. лицо"),"Юридическое лицо","Юр. лицо"),"") ->  | AE8: =IFERROR(VLOOKUP($AA8,$B$4:$V$10,13,),"") ->  | AF8: =IFERROR(VLOOKUP($AA8,$B$4:$V$10,19,),"") ->  | AG8: =IFERROR(VLOOKUP($AA8,$B$4:$V$10,20,),"") ->  | AH8: =IFERROR(VLOOKUP($AA8,$B$4:$V$10,21,),"") -> 
B9: =IF(A9="","",SUM($A$3:A9)) ->  | AA9: 6 | AC9: =IFERROR(SUBSTITUTE(VLOOKUP($AA9,$B$4:$V$10,4,)," по отчету:",""),"") ->  | AD9: =IFERROR(SUBSTITUTE(SUBSTITUTE(VLOOKUP($AA9,$B$4:$V$10,6,),"Физическое лицо","Физ. лицо"),"Юридическое лицо","Юр. лицо"),"") ->  | AE9: =IFERROR(VLOOKUP($AA9,$B$4:$V$10,13,),"") ->  | AF9: =IFERROR(VLOOKUP($AA9,$B$4:$V$10,19,),"") ->  | AG9: =IFERROR(VLOOKUP($AA9,$B$4:$V$10,20,),"") ->  | AH9: =IFERROR(VLOOKUP($AA9,$B$4:$V$10,21,),"") -> 
B10: =IF(A10="","",SUM($A$3:A10)) ->  | AA10: 7 | AC10: =IFERROR(SUBSTITUTE(VLOOKUP($AA10,$B$4:$V$10,4,)," по отчету:",""),"") ->  | AD10: =IFERROR(SUBSTITUTE(SUBSTITUTE(VLOOKUP($AA10,$B$4:$V$10,6,),"Физическое лицо","Физ. лицо"),"Юридическое лицо","Юр. лицо"),"") ->  | AE10: =IFERROR(VLOOKUP($AA10,$B$4:$V$10,13,),"") ->  | AF10: =IFERROR(VLOOKUP($AA10,$B$4:$V$10,19,),"") ->  | AG10: =IFERROR(VLOOKUP($AA10,$B$4:$V$10,20,),"") ->  | AH10: =IFERROR(VLOOKUP($AA10,$B$4:$V$10,21,),"") -> 
